fUST/lending_fUST_20250605
["ID","MTS","AMOUNT","RATE_DAILY","PERIOD"]
[364475605,1749111046880,-151.0,0.0002131,2]
[364475606,1749111046890,-151.0,0.0002131,2]
[364475607,1749111046900,-3000.0,0.0002132,2]
[364475608,1749111046909,-3000.0,0.0002133,2]
[364475609,1749111046918,-3000.0,0.0002134,2]
[364475610,1749111046927,-151.0,0.0002134,2]
[364475611,1749111046937,-292.488006,0.0002134,2]
[364475612,1749111046947,-151.0,0.0002134,2]
[364475613,1749111046957,-3000.0,0.0002135,2]
[364475614,1749111046966,-3000.0,0.0002136,2]
[364475615,1749111046980,-3000.0,0.0002137,2]
[364475616,1749111046991,-3000.0,0.0002138,2]
[364475617,1749111047000,-3000.0,0.0002139,2]
[364475618,1749111047011,-3000.0,0.000214,2]
[364475619,1749111047021,-3000.0,0.0002141,2]
[364475620,1749111047030,-440.0,0.00021413,2]
[364475621,1749111047040,-158.377826,0.00021413,2]
[364475622,1749111047050,-500.0,0.00021419,2]
[364475623,1749111047060,-500.0,0.00021419,2]
[364475624,1749111047070,-500.0,0.00021419,2]
[364475625,1749111047079,-500.0,0.00021419,2]
[364475626,1749111047089,-500.0,0.00021419,2]
[364475627,1749111047098,-500.0,0.00021419,2]
[364475628,1749111047108,-500.0,0.00021419,2]
[364475629,1749111047118,-500.0,0.00021419,2]
[364475630,1749111047127,-287.05092623,0.00021419,2]
[364475631,1749111047137,-500.0,0.00021419,2]
[364475632,1749111047147,-500.0,0.00021419,2]
[364475633,1749111047156,-500.0,0.00021419,2]
[364475634,1749111047166,-500.0,0.00021419,2]
[364475635,1749111047176,-500.0,0.00021419,2]
[364475636,1749111047186,-500.0,0.00021419,2]
[364475637,1749111047195,-500.0,0.00021419,2]
[364475638,1749111047205,-500.0,0.00021419,2]
[364475639,1749111047214,-533.88717329,0.00021419,2]
[364475640,1749111047223,-500.0,0.00021419,2]
[364475641,1749111047232,-500.0,0.00021419,2]
[364475642,1749111047243,-3000.0,0.0002142,2]
[364475643,1749111047253,-3000.0,0.0002143,2]
[364475644,1749111047262,-253.963642,0.0002143,2]
[364475645,1749111047271,-151.0,0.0002143,2]
[364475646,1749111047281,-151.0,0.0002143,2]
[364475647,1749111047291,-151.0,0.0002143,2]
[364475648,1749111047300,-151.0,0.0002143,2]
[364475649,1749111047309,-218.593782,0.0002143,2]
[364475650,1749111047319,-3000.0,0.0002144,2]
[364475651,1749111047329,-3000.0,0.0002145,2]
[364475652,1749111047339,-440.0,0.00021459,2]
[364475653,1749111047349,-576.64,0.00021459,2]
[364475654,1749111047358,-847.56,0.00021459,2]
[364475655,1749111047367,-563.07,0.00021459,2]
[364475656,1749111047378,-3000.0,0.0002146,2]
[364475657,1749111047388,-1110.35,0.0002146,2]
[364475658,1749111047398,-774.21,0.0002146,2]
[364475659,1749111047408,-503.59,0.0002146,2]
[364475660,1749111047418,-440.0,0.0002146,2]
[364475661,1749111047427,-1165.79,0.00021461,2]
[364475662,1749111047436,-440.0,0.00021461,2]
[364475663,1749111047446,-440.0,0.00021461,2]
[364475664,1749111047456,-1276.94,0.00021461,2]
[364475665,1749111047465,-3000.0,0.0002147,2]
[364475666,1749111047475,-3000.0,0.0002148,2]
[364475667,1749111047484,-156.492703,0.0002148,2]
[364475668,1749111047495,-156.492703,0.0002148,2]
[364475669,1749111047505,-790.98,0.00021483,2]
[364475670,1749111047515,-3000.0,0.0002149,2]
[364475671,1749111047525,-1810.0,0.00021498,2]
[364475672,1749111047534,-3000.0,0.000215,2]
[364475673,1749111047544,-3000.0,0.0002151,2]
[364475674,1749111047554,-3000.0,0.0002152,2]
[364475675,1749111047563,-151.0,0.0002152,2]
[364475676,1749111047573,-151.0,0.0002152,2]
[364475677,1749111047583,-151.0,0.0002152,2]
[364475678,1749111047592,-151.0,0.0002152,2]
[364475679,1749111047602,-151.0,0.0002152,2]
[364475680,1749111047612,-177.913582,0.0002152,2]
[364475681,1749111047621,-177.913582,0.0002152,2]
[364475682,1749111047630,-151.0,0.0002152,2]
[364475683,1749111047640,-1840.18557876,0.00021521,5]
[364475684,1749111047649,-3000.0,0.0002153,2]
[364475685,1749111047658,-6726.51407083,0.00021539,3]
[364475686,1749111047667,-308346.2941511,0.00021539,2]
[364475687,1749111047683,-4747.49783594,0.00021539,2]
[364475688,1749111047827,-1123.94,0.00017075,2]
[364475689,1749111047837,-1123.94,0.00017349,2]
[364475690,1749111047846,-1123.94,0.00017623,2]
[364475691,1749111047856,-15.54322996,0.00017897,2]
[364475692,1749111047869,-1108.39677004,0.00017897,2]
[364475693,1749111047878,-1123.94,0.00018171,2]
[364475694,1749111047889,-1123.94,0.00018445,2]
[364475695,1749111047899,-1123.94,0.00018719,2]
[364475696,1749111047908,-1123.94,0.00018993,2]
[364475697,1749111047918,-16339.84322996,0.00021539,2]
[364475701,1749111048843,-440.0,0.00016802,2]
[364475702,1749111048854,-440.0,0.00016803,2]
[364475703,1749111048865,-440.0,0.00017076,2]
[364475704,1749111048875,-440.0,0.00017077,2]
[364475705,1749111048884,-440.0,0.0001735,2]
[364475706,1749111048894,-575.21,0.00017351,2]
[364475707,1749111048904,-1123.94,0.00019267,2]
[364475708,1749111048915,-1123.94,0.00019541,2]
[364475709,1749111048925,-1123.94,0.00019815,2]
[364475710,1749111048935,-1123.94,0.00020089,2]
[364475711,1749111048944,-1123.94,0.00020363,2]
[364475712,1749111048954,-1123.94,0.00020637,2]
[364475713,1749111048964,-576.25,0.0002069,10]
[364475714,1749111048976,-1123.94,0.00020911,2]
[364475715,1749111048986,-1123.94,0.00021185,2]
[364475716,1749111048997,-500.0,0.00021419,2]
[364475717,1749111049007,-500.0,0.00021419,2]
[364475718,1749111049016,-500.0,0.00021419,2]
[364475719,1749111049026,-303.11882787,0.00021419,2]
[364475720,1749111049036,-500.0,0.00021419,2]
[364475721,1749111049045,-500.0,0.00021419,2]
[364475722,1749111049058,-500.0,0.00021419,2]
[364475723,1749111049068,-500.0,0.00021419,2]
[364475724,1749111049078,-500.0,0.00021419,2]
[364475725,1749111049088,-500.0,0.00021419,2]
[364475726,1749111049098,-1123.94,0.00021459,2]
[364475727,1749111049108,-2559.98365095,0.00021539,2]
[364475728,1749111049121,-2289.99996995,0.00021539,2]
[364475739,1749111209893,273.2,0.00024226,120]
[364476241,1749111618828,-342.10279694,0.0001618,2]
[364476243,1749111620272,-157.56091234,0.0001618,2]
[364476244,1749111623119,-253.96030046,0.0001618,2]
[364476245,1749111625280,-188.11901069,0.0001618,2]
[364476246,1749111629167,-193.3401252,0.0001618,2]
[364476247,1749111632124,-194.91840564,0.0001618,2]
[364476248,1749111634329,-320.63012226,0.0001618,2]
[364476249,1749111636531,-163.82220355,0.0001618,2]
[364476250,1749111638205,-456.69794491,0.0001618,2]
[364476251,1749111641165,-340.74030046,0.0001618,2]
[364476252,1749111644627,-207.41661997,0.0001618,2]
[364476253,1749111647057,-158.18523208,0.0001618,2]
[364476254,1749111648571,-182.41261038,0.0001618,2]
[364476255,1749111650791,-151.47562089,0.0001618,2]
[364476256,1749111653464,-236.28749876,0.0001618,2]
[364476257,1749111656223,-191.89801977,0.0001618,2]
[364476258,1749111697774,501.0,0.00025,120]
[364476261,1749111805663,5000.0,0.00016,2]
[364476290,1749112010892,4094.59513749,0.00016,2]
[364476291,1749112010915,905.40486251,0.00016,2]
[364476297,1749112026572,5000.0,0.00016,2]
[364476305,1749112041854,5000.0,0.00016,2]
[364476313,1749112056927,3866.02513749,0.00016,2]
[364476314,1749112056949,1133.97486251,0.00016,2]
[364476319,1749112072703,5000.0,0.00016,2]
[364476321,1749112077477,238.297403,0.00013699,2]
[364476328,1749112087964,5000.0,0.00016,2]
[364476331,1749112103236,3399.15773449,0.00016,2]
[364476332,1749112103259,1600.84226551,0.00016,2]
[364476335,1749112120081,5000.0,0.00016,2]
[364476337,1749112123487,150.99999925,0.0002,120]
[364476338,1749112123911,150.999999,0.00024222,120]
[364476344,1749112135234,5000.0,0.00016,2]
[364476414,1749112151026,3170.58773449,0.00016,2]
[364476415,1749112151047,1829.41226551,0.00016,2]
[364476420,1749112166712,5000.0,0.00016,2]
[364476424,1749112182146,5000.0,0.00016,2]
[364476425,1749112197408,2942.01773449,0.00016,2]
[364476426,1749112197432,2057.98226551,0.00016,2]
[364476430,1749112213081,5000.0,0.00016,2]
[364476431,1749112228553,5000.0,0.00016,2]
[364476478,1749112233510,-3739.5677243,0.00016181,2]
[364476479,1749112233521,-153.30079669,0.000167,2]
[364476480,1749112233531,-1654.17,0.00016716,2]
[364476481,1749112233540,-260.0,0.000168,2]
[364476482,1749112233550,-300.0,0.000168,2]
[364476483,1749112233560,-440.0,0.00016801,2]
[364476484,1749112233569,-440.0,0.00016801,2]
[364476485,1749112233580,-440.0,0.00016801,2]
[364476486,1749112233590,-440.0,0.00016801,2]
[364476487,1749112233600,-929.82,0.00016801,2]
[364476488,1749112233609,-440.0,0.00017075,2]
[364476489,1749112233620,-440.0,0.00017075,2]
[364476490,1749112233630,-440.0,0.00017075,2]
[364476491,1749112233639,-929.82,0.00017075,2]
[364476492,1749112233649,-650.07296539,0.0001729,2]
[364476493,1749112233659,-440.0,0.00017349,2]
[364476494,1749112233669,-440.0,0.00017349,2]
[364476495,1749112233679,-929.82,0.00017349,2]
[364476496,1749112233689,-440.0,0.00017623,2]
[364476497,1749112233699,-440.0,0.00017623,2]
[364476498,1749112233710,-929.82,0.00017623,2]
[364476499,1749112233721,-240.0,0.00017897,2]
[364476500,1749112233731,-440.0,0.00017897,2]
[364476501,1749112233742,-929.82,0.00017897,2]
[364476502,1749112233752,-1380.75679896,0.000179,2]
[364476503,1749112233761,-1380.75679883,0.00018141,2]
[364476504,1749112233771,-440.0,0.00018171,2]
[364476505,1749112233781,-929.82,0.00018171,2]
[364476506,1749112233791,-34474.16348424,0.000182,3]
[364476540,1749112238480,-474.31105081,0.000182,3]
[364476543,1749112238492,-1580.06659583,0.000182,3]
[364476548,1749112238532,-20327.09742053,0.000182,3]
[364476564,1749112238673,-842.5625,0.000182,3]
[364476566,1749112238686,-3308.35,0.00018235,2]
[364476568,1749112238696,-288.97680484,0.00018256,2]
[364476570,1749112238705,-500.0,0.00018356,2]
[364476572,1749112238714,-440.0,0.00018356,2]
[364476574,1749112238724,-440.0,0.00018356,2]
[364476576,1749112238733,-440.0,0.00018356,2]
[364476578,1749112238743,-440.0,0.00018356,2]
[364476580,1749112238753,-440.0,0.00018356,2]
[364476582,1749112238763,-440.0,0.00018356,2]
[364476584,1749112238772,-440.0,0.00018356,2]
[364476586,1749112238782,-388.52,0.00018356,2]
[364476588,1749112238791,-440.0,0.00018356,2]
[364476590,1749112238801,-440.0,0.00018356,2]
[364476592,1749112238810,-440.0,0.00018356,2]
[364476594,1749112238819,-440.0,0.00018356,2]
[364476596,1749112238829,-440.0,0.00018356,2]
[364476598,1749112238838,-440.0,0.00018356,2]
[364476600,1749112238847,-385.77129826,0.00018356,2]
[364476602,1749112238856,-440.0,0.00018356,2]
[364476604,1749112238866,-440.0,0.00018356,2]
[364476606,1749112238875,-640.15,0.00018356,2]
[364476608,1749112238884,-440.0,0.00018356,2]
[364476610,1749112238894,-440.0,0.00018356,2]
[364476612,1749112238902,-440.0,0.00018356,2]
[364476613,1749112238912,-440.0,0.00018356,2]
[364476615,1749112238921,-585.91,0.00018356,2]
[364476618,1749112238931,-440.0,0.00018356,2]
[364476619,1749112238940,-440.0,0.00018356,2]
[364476621,1749112238951,-440.0,0.00018356,2]
[364476623,1749112238961,-440.0,0.00018356,2]
[364476625,1749112238971,-374.52,0.00018356,2]
[364476627,1749112238981,-440.0,0.00018356,2]
[364476629,1749112238990,-440.0,0.00018356,2]
[364476631,1749112239000,-440.0,0.00018356,2]
[364476633,1749112239010,-1380.75679883,0.00018383,2]
[364476635,1749112239019,-440.0,0.00018445,2]
[364476637,1749112239028,-929.82,0.00018445,2]
[364476639,1749112239037,-1380.75679883,0.00018624,2]
[364476641,1749112239047,-440.0,0.0001863,2]
[364476643,1749112239056,-440.0,0.0001863,2]
[364476645,1749112239065,-440.0,0.0001863,2]
[364476647,1749112239075,-440.0,0.0001863,2]
[364476649,1749112239084,-440.0,0.0001863,2]
[364476651,1749112239094,-440.0,0.0001863,2]
[364476653,1749112239103,-440.0,0.0001863,2]
[364476656,1749112239114,-640.15,0.0001863,2]
[364476658,1749112239123,-440.0,0.0001863,2]
[364476659,1749112239133,-440.0,0.0001863,2]
[364476661,1749112239143,-440.0,0.0001863,2]
[364476663,1749112239152,-585.91,0.0001863,2]
[364476666,1749112239162,-440.0,0.0001863,2]
[364476667,1749112239171,-440.0,0.0001863,2]
[364476669,1749112239180,-440.0,0.0001863,2]
[364476671,1749112239190,-187.79,0.0001863,2]
[364476673,1749112239200,-440.0,0.0001863,2]
[364476675,1749112239211,-440.0,0.00018719,2]
[364476677,1749112239221,-929.82,0.00018719,2]
[364476679,1749112239230,-1380.75679883,0.00018866,2]
[364476682,1749112239240,-1939.12176954,0.000189,2]
[364476684,1749112239250,-440.0,0.00018904,2]
[364476685,1749112239259,-440.0,0.00018904,2]
[364476687,1749112239268,-440.0,0.00018904,2]
[364476689,1749112239277,-440.0,0.00018904,2]
[364476691,1749112239286,-440.0,0.00018904,2]
[364476693,1749112239295,-440.0,0.00018904,2]
[364476695,1749112239304,-224.94,0.00018904,2]
[364476697,1749112239314,-640.15,0.00018904,2]
[364476699,1749112239323,-440.0,0.00018904,2]
[364476701,1749112239332,-440.0,0.00018904,2]
[364476703,1749112239341,-440.0,0.00018904,2]
[364476705,1749112239351,-585.91,0.00018904,2]
[364476707,1749112239363,-440.0,0.00018904,2]
[364476709,1749112239373,-440.0,0.00018904,2]
[364476711,1749112239382,-440.0,0.00018904,2]
[364476713,1749112239391,-440.0,0.00018904,2]
[364476715,1749112239401,-160.0,0.00018957,2]
[364476717,1749112239410,-160.0,0.00018957,2]
[364476719,1749112239419,-160.0,0.00018957,2]
[364476721,1749112239428,-160.0,0.00018964,2]
[364476723,1749112239438,-842.5625,0.00018964,2]
[364476725,1749112239447,-160.0,0.00018964,2]
[364476727,1749112239456,-12675.11581177,0.00018964,2]
[364476729,1749112239465,-229.48950782,0.00018964,2]
[364476731,1749112239475,-423.7637613,0.00018964,2]
[364476733,1749112239484,-160.0,0.00018964,2]
[364476735,1749112239493,-212.94059491,0.00018964,2]
[364476737,1749112239502,-160.0,0.0001897,2]
[364476739,1749112239512,-225.03342289,0.00018991,2]
[364476741,1749112239521,-440.0,0.00018993,2]
[364476743,1749112239531,-929.82,0.00018993,2]
[364476745,1749112239540,-288.97680483,0.00019094,2]
[364476747,1749112239549,-1380.75679883,0.00019107,2]
[364476749,1749112239560,-440.0,0.00019178,2]
[364476751,1749112239569,-440.0,0.00019178,2]
[364476753,1749112239578,-440.0,0.00019178,2]
[364476755,1749112239588,-440.0,0.00019178,2]
[364476757,1749112239597,-440.0,0.00019178,2]
[364476759,1749112239606,-440.0,0.00019178,2]
[364476761,1749112239615,-440.0,0.00019178,2]
[364476763,1749112239624,-440.0,0.00019178,2]
[364476765,1749112239634,-440.0,0.00019178,2]
[364476767,1749112239644,-440.0,0.00019178,2]
[364476769,1749112239653,-440.0,0.00019178,2]
[364476771,1749112239662,-440.0,0.00019178,2]
[364476773,1749112239671,-232.70255786,0.00019178,2]
[364476775,1749112239681,-440.0,0.00019178,2]
[364476777,1749112239691,-440.0,0.00019178,2]
[364476779,1749112239699,-640.15,0.00019178,2]
[364476781,1749112239709,-440.0,0.00019178,2]
[364476783,1749112239718,-440.0,0.00019178,2]
[364476785,1749112239729,-440.0,0.00019178,2]
[364476788,1749112239743,-585.91,0.00019178,2]
[364476790,1749112239758,-440.0,0.00019178,2]
[364476792,1749112239768,-440.0,0.00019178,2]
[364476794,1749112239778,-440.0,0.00019178,2]
[364476796,1749112239787,-440.0,0.00019178,2]
[364476798,1749112239797,-188.335457,0.00019178,2]
[364476800,1749112239806,-440.0,0.00019267,2]
[364476802,1749112239816,-440.0,0.00019267,2]
[364476804,1749112239825,-929.82,0.00019267,2]
[364476806,1749112239835,-25559.03518315,0.00019329,2]
[364476808,1749112239846,-1380.75679883,0.00019348,2]
[364476810,1749112239856,-440.0,0.00019452,2]
[364476812,1749112239867,-440.0,0.00019452,2]
[364476814,1749112239878,-440.0,0.00019452,2]
[364476816,1749112239888,-506.35,0.00019452,2]
[364476819,1749112239898,-440.0,0.00019452,2]
[364476821,1749112239908,-640.15,0.00019452,2]
[364476823,1749112239917,-440.0,0.00019452,2]
[364476825,1749112239926,-440.0,0.00019452,2]
[364476827,1749112239937,-440.0,0.00019452,2]
[364476829,1749112239946,-585.91,0.00019452,2]
[364476831,1749112239955,-440.0,0.00019452,2]
[364476833,1749112239965,-440.0,0.00019452,2]
[364476835,1749112239975,-440.0,0.00019452,2]
[364476837,1749112239984,-440.0,0.00019452,2]
[364476839,1749112239993,-500.0,0.00019473,2]
[364476841,1749112240003,-500.0,0.00019486,2]
[364476843,1749112240012,-500.0,0.00019486,2]
[364476845,1749112240022,-500.0,0.00019486,2]
[364476847,1749112240031,-500.0,0.00019486,2]
[364476849,1749112240040,-198.74534881,0.00019486,2]
[364476851,1749112240050,-500.0,0.00019486,2]
[364476853,1749112240063,-500.0,0.00019486,2]
[364476855,1749112240072,-500.0,0.00019486,2]
[364476857,1749112240082,-500.0,0.00019486,2]
[364476859,1749112240092,-500.0,0.00019486,2]
[364476861,1749112240102,-500.0,0.00019486,2]
[364476863,1749112240111,-500.0,0.00019486,2]
[364476865,1749112240121,-500.0,0.00019486,2]
[364476867,1749112240130,-500.0,0.00019486,2]
[364476869,1749112240140,-479.46136047,0.00019486,2]
[364476871,1749112240149,-500.0,0.00019486,2]
[364476873,1749112240158,-500.0,0.00019486,2]
[364476875,1749112240168,-500.0,0.00019486,2]
[364476877,1749112240178,-500.0,0.00019486,2]
[364476879,1749112240189,-500.0,0.00019486,2]
[364476882,1749112240199,-500.0,0.00019486,2]
[364476884,1749112240209,-500.0,0.00019486,2]
[364476885,1749112240219,-500.0,0.00019486,2]
[364476888,1749112240228,-500.0,0.00019486,2]
[364476890,1749112240238,-500.0,0.00019486,2]
[364476892,1749112240249,-500.0,0.00019486,2]
[364476894,1749112240259,-500.0,0.00019486,2]
[364476896,1749112240269,-500.0,0.00019486,2]
[364476898,1749112240279,-610.06494327,0.00019486,2]
[364476900,1749112240289,-500.0,0.00019486,2]
[364476902,1749112240298,-500.0,0.00019486,2]
[364476904,1749112240308,-500.0,0.00019486,2]
[364476906,1749112240318,-500.0,0.00019486,2]
[364476908,1749112240328,-500.0,0.00019486,2]
[364476910,1749112240338,-500.0,0.00019486,2]
[364476912,1749112240348,-191.03769944,0.00019486,2]
[364476914,1749112240361,-579.6699474,0.00019486,2]
[364476916,1749112240372,-500.0,0.00019486,2]
[364476918,1749112240383,-187.69866825,0.00019486,2]
[364476921,1749112240392,-500.0,0.00019486,2]
[364476922,1749112240404,-500.0,0.00019486,2]
[364476924,1749112240414,-500.0,0.00019486,2]
[364476926,1749112240425,-500.0,0.00019486,2]
[364476928,1749112240436,-351.75180637,0.00019486,2]
[364476931,1749112240446,-500.0,0.00019486,2]
[364476933,1749112240456,-500.0,0.00019486,2]
[364476935,1749112240466,-500.0,0.00019486,2]
[364476937,1749112240477,-500.0,0.00019486,2]
[364476939,1749112240487,-500.0,0.00019486,2]
[364476941,1749112240497,-500.0,0.00019486,2]
[364476943,1749112240507,-500.0,0.00019486,2]
[364476945,1749112240516,-500.0,0.00019486,2]
[364476947,1749112240525,-500.0,0.00019486,2]
[364476949,1749112240535,-500.0,0.00019486,2]
[364476951,1749112240544,-500.0,0.00019486,2]
[364476953,1749112240554,-500.0,0.00019486,2]
[364476954,1749112240563,-500.0,0.00019486,2]
[364476956,1749112240573,-312.4676,0.00019486,2]
[364476958,1749112240583,-500.0,0.00019486,2]
[364476960,1749112240593,-500.0,0.00019486,2]
[364476962,1749112240603,-500.0,0.00019486,2]
[364476964,1749112240612,-500.0,0.00019486,2]
[364476966,1749112240622,-500.0,0.00019486,2]
[364476968,1749112240631,-500.0,0.00019486,2]
[364476970,1749112240640,-500.0,0.00019486,2]
[364476972,1749112240649,-500.0,0.00019486,2]
[364476974,1749112240658,-500.0,0.00019486,2]
[364476976,1749112240667,-500.0,0.00019486,2]
[364476978,1749112240677,-425.91891369,0.00019486,2]
[364476980,1749112240686,-500.0,0.00019486,2]
[364476982,1749112240695,-500.0,0.00019486,2]
[364476984,1749112240705,-500.0,0.00019486,2]
[364476986,1749112240714,-500.0,0.00019486,2]
[364476987,1749112240724,-500.0,0.00019486,2]
[364476989,1749112240734,-500.0,0.00019486,2]
[364476991,1749112240743,-500.0,0.00019486,2]
[364476993,1749112240752,-500.0,0.00019486,2]
[364476995,1749112240762,-500.0,0.00019486,2]
[364476997,1749112240771,-500.0,0.00019486,2]
[364476999,1749112240780,-500.0,0.00019486,2]
[364477001,1749112240790,-500.0,0.00019486,2]
[364477003,1749112240799,-500.0,0.00019486,2]
[364477005,1749112240808,-500.0,0.00019486,2]
[364477007,1749112240818,-500.0,0.00019486,2]
[364477009,1749112240831,-500.0,0.00019486,2]
[364477011,1749112240840,-500.0,0.00019486,2]
[364477013,1749112240850,-500.0,0.00019486,2]
[364477015,1749112240860,-500.0,0.00019486,2]
[364477017,1749112240869,-500.0,0.00019486,2]
[364477019,1749112240878,-500.0,0.00019486,2]
[364477021,1749112240888,-500.0,0.00019486,2]
[364477023,1749112240897,-500.0,0.00019486,2]
[364477025,1749112240907,-500.0,0.00019486,2]
[364477027,1749112240916,-500.0,0.00019486,2]
[364477029,1749112240925,-500.0,0.00019486,2]
[364477031,1749112240935,-500.0,0.00019486,2]
[364477033,1749112240944,-500.0,0.00019486,2]
[364477035,1749112240954,-500.0,0.00019486,2]
[364477037,1749112240963,-500.0,0.00019486,2]
[364477039,1749112240974,-500.0,0.00019486,2]
[364477040,1749112240983,-500.0,0.00019486,2]
[364477042,1749112240994,-500.0,0.00019486,2]
[364477044,1749112241004,-154.98673,0.00019496,2]
[364477046,1749112241013,-151.0,0.00019496,2]
[364477048,1749112241023,-151.0,0.00019496,2]
[364477050,1749112241032,-207.4,0.00019499,2]
[364477052,1749112241041,-500.0,0.00019499,2]
[364477054,1749112241050,-500.0,0.00019499,2]
[364477055,1749112241059,-500.0,0.00019499,2]
[364477057,1749112241068,-239.45654031,0.00019499,2]
[364477059,1749112241078,-249678.92886947,0.000195,2]
[364477061,1749112241087,-440.0,0.00019541,2]
[364477063,1749112241096,-929.82,0.00019541,2]
[364477065,1749112241106,-1380.75679883,0.0001959,2]
[364477067,1749112241115,-1037.03768734,0.00019715,2]
[364477069,1749112241124,-440.0,0.00019726,2]
[364477071,1749112241133,-339.51557722,0.00019726,2]
[364477072,1749112241142,-440.0,0.00019726,2]
[364477074,1749112241151,-440.0,0.00019726,2]
[364477076,1749112241160,-640.15,0.00019726,2]
[364477078,1749112241170,-440.0,0.00019726,2]
[364477080,1749112241180,-440.0,0.00019726,2]
[364477082,1749112241189,-440.0,0.00019726,2]
[364477084,1749112241199,-585.91,0.00019726,2]
[364477086,1749112241209,-440.0,0.00019726,2]
[364477088,1749112241218,-440.0,0.00019726,2]
[364477090,1749112241228,-440.0,0.00019726,2]
[364477092,1749112241237,-440.0,0.00019726,2]
[364477094,1749112241247,-4962.52,0.00019755,2]
[364477096,1749112241257,-440.0,0.00019815,2]
[364477098,1749112241266,-929.82,0.00019815,2]
[364477099,1749112241275,-1380.75679883,0.00019831,2]
[364477101,1749112241285,-274.471,0.00019861,2]
[364477103,1749112241295,-288.97680483,0.00019932,2]
[364477105,1749112241305,-440.0,0.0002,2]
[364477107,1749112241314,-440.0,0.0002,2]
[364477109,1749112241323,-440.0,0.0002,2]
[364477111,1749112241332,-640.15,0.0002,2]
[364477113,1749112241342,-423.52,0.0002,2]
[364477115,1749112241352,-440.0,0.0002,2]
[364477117,1749112241365,-440.0,0.0002,2]
[364477119,1749112241375,-585.91,0.0002,2]
[364477121,1749112241386,-440.0,0.0002,2]
[364477123,1749112241396,-440.0,0.0002,2]
[364477125,1749112241406,-440.0,0.0002,2]
[364477127,1749112241415,-440.0,0.0002,2]
[364477129,1749112241424,-500.0,0.00020021,2]
[364477131,1749112241437,-151.0,0.00020043,2]
[364477133,1749112241447,-151.0,0.00020043,2]
[364477135,1749112241456,-1380.75679883,0.00020072,2]
[364477137,1749112241466,-440.0,0.00020089,2]
[364477139,1749112241476,-929.82,0.00020089,2]
[364477141,1749112241486,-238.297403,0.00020187,2]
[364477154,1749112241619,-1037.03768734,0.00020261,2]
[364477156,1749112241628,-440.0,0.00020273,2]
[364477158,1749112241637,-440.0,0.00020273,2]
[364477160,1749112241647,-440.0,0.00020273,2]
[364477162,1749112241656,-640.15,0.00020273,2]
[364477164,1749112241666,-440.0,0.00020273,2]
[364477166,1749112241675,-440.0,0.00020273,2]
[364477168,1749112241684,-585.91,0.00020273,2]
[364477170,1749112241694,-440.0,0.00020273,2]
[364477172,1749112241706,-440.0,0.00020273,2]
[364477174,1749112241715,-440.0,0.00020273,2]
[364477176,1749112241726,-480.23,0.00020273,2]
[364477178,1749112241736,-1380.75679883,0.00020314,3]
[364477180,1749112241745,-440.0,0.00020363,2]